fUSD/lending_fUSD_20260307
["ID","MTS","AMOUNT","RATE_DAILY","PERIOD"]
[407933404,1772922695680,-150.0,0.00046258,30]
[407933405,1772922695690,-150.0,0.00046277,30]
[407933406,1772922695699,-150.0,0.00046277,30]
[407933407,1772922695709,-150.0,0.00046277,30]
[407933408,1772922695719,-158.535336,0.00046279,7]
[407933409,1772922695729,-2936.480552,0.00046279,7]
[407933410,1772922695739,-1487.866024,0.00046279,7]
[407933411,1772922695749,-150.0,0.00046293,30]
[407933412,1772922695759,-1206.0,0.00046301,2]
[407933413,1772922695769,-751.54,0.00046301,120]
[407933414,1772922695779,-500.0,0.00046301,120]
[407933415,1772922695788,-198.58390124,0.00046301,30]
[407933416,1772922695798,-151.46,0.00046302,120]
[407933417,1772922695808,-178.59741063,0.00046303,30]
[407933418,1772922695817,-237.41052331,0.00046303,30]
[407933419,1772922695827,-159.52490233,0.00046303,30]
[407933420,1772922695837,-196.42941855,0.00046303,30]
[407933421,1772922695846,-496.18312323,0.00046303,30]
[407933422,1772922695856,-259.43061762,0.00046303,30]
[407933423,1772922695866,-150.0,0.0004632,120]
[407933424,1772922695875,-154.39,0.00046328,120]
[407933425,1772922695884,-150.0,0.0004633,30]
[407933426,1772922695894,-150.0,0.00046343,30]
[407933427,1772922695904,-25371.04134594,0.00046349,120]
[407933428,1772922695914,-150.0,0.00046349,30]
[407933429,1772922695924,-81412.0,0.0004635,60]
[407933430,1772922695934,-237.41052331,0.00046351,30]
[407933431,1772922695944,-178.59741063,0.00046351,30]
[407933432,1772922695954,-159.52490233,0.00046351,30]
[407933433,1772922695963,-196.42941855,0.00046351,30]
[407933434,1772922695973,-496.18312323,0.00046351,30]
[407933435,1772922695983,-259.43061762,0.00046351,30]
[407933436,1772922695993,-1000.0,0.00046353,120]
[407933437,1772922696003,-150.0,0.00046364,30]
[407933438,1772922696013,-150.0,0.00046364,30]
[407933439,1772922696022,-993.49,0.0004637,120]
[407933440,1772922696032,-150.0,0.00046372,30]
[407933441,1772922696041,-152.0,0.00046374,17]
[407933442,1772922696051,-442.69,0.00046378,120]
[407933443,1772922696060,-1055.21139838,0.00046388,30]
[407933444,1772922696069,-1390.26,0.00046388,30]
[407933445,1772922696078,-1298.62,0.00046388,30]
[407933446,1772922696088,-610.45,0.00046388,30]
[407933447,1772922696098,-843.61,0.00046388,30]
[407933448,1772922696107,-1262.08,0.00046388,30]
[407933449,1772922696117,-776.62,0.00046388,30]
[407933450,1772922696126,-686.72,0.00046388,30]
[407933451,1772922696136,-1245.55,0.00046388,30]
[407933452,1772922696146,-453.31755163,0.00046388,30]
[407933453,1772922696155,-239.62837302,0.00046388,30]
[407933454,1772922696164,-178.53317552,0.00046388,30]
[407933455,1772922696174,-214.71061469,0.00046393,30]
[407933456,1772922696183,-214.71061469,0.00046393,30]
[407933457,1772922696193,-150.0,0.00046394,30]
[407933458,1772922696203,-150.0,0.00046399,30]
[407933459,1772922696214,-237.41052331,0.00046399,30]
[407933460,1772922696448,-178.59741063,0.00046399,30]
[407933461,1772922696459,-159.52490233,0.00046399,30]
[407933462,1772922696470,-196.42941855,0.00046399,30]
[407933463,1772922696479,-496.18312323,0.00046399,30]
[407933464,1772922696489,-259.43061762,0.00046399,30]
[407933465,1772922696498,-921.0,0.000464,120]
[407933466,1772922696508,-151.46,0.00046402,120]
[407933467,1772922696518,-150.0,0.00046412,120]
[407933468,1772922696528,-150.0,0.00046414,30]
[407933469,1772922696538,-156.48609943,0.00046427,2]
[407933470,1772922696547,-154.4,0.00046428,120]
[407933471,1772922696556,-150.0,0.0004644,30]
[407933472,1772922696566,-150.0,0.00046445,30]
[407933473,1772922696575,-178.59741063,0.00046446,30]
[407933474,1772922696585,-159.52490233,0.00046446,30]
[407933475,1772922696594,-196.42941855,0.00046446,30]
[407933476,1772922696603,-496.18312323,0.00046446,30]
[407933477,1772922696612,-259.43061762,0.00046446,30]
[407933478,1772922696621,-150.0,0.00046492,30]
[407933479,1772922696630,-150.0,0.00046492,30]
[407933480,1772922696640,-237.41052331,0.00046494,30]
[407933481,1772922696650,-178.59741063,0.00046494,30]
[407933482,1772922696660,-159.52490233,0.00046494,30]
[407933483,1772922696670,-196.42941855,0.00046494,30]
[407933484,1772922696680,-496.18312323,0.00046494,30]
[407933485,1772922696689,-259.43061762,0.00046494,30]
[407933486,1772922696699,-150.0,0.00046495,120]
[407933487,1772922696709,-150.0,0.00046496,30]
[407933488,1772922696719,-150.0,0.00046498,30]
[407933489,1772922696729,-412.77255241,0.000465,30]
[407933490,1772922696737,-2500.0,0.000465,120]
[407933491,1772922696747,-100000.0,0.000465,9]
[407933492,1772922696757,-1000.0,0.000465,120]
[407933493,1772922696767,-13166.88000001,0.000465,120]
[407933494,1772922696776,-904.56777008,0.000465,30]
[407933495,1772922696786,-100000.0,0.000465,8]
[407933496,1772922696796,-573.0,0.000465,120]
[407933497,1772922696805,-500.0,0.000465,120]
[407933498,1772922696815,-1000.0,0.00046502,120]
[407933499,1772922696829,-151.46,0.00046502,120]
[407933500,1772922696847,-150.0,0.00046518,120]
[407933501,1772922696867,-150.0,0.00046531,30]
[407933502,1772922696887,-237.41052331,0.00046542,30]
[407933503,1772922696903,-178.59741063,0.00046542,30]
[407933504,1772922696913,-159.52490233,0.00046542,30]
[407933505,1772922696923,-196.42941855,0.00046542,30]
[407933506,1772922696932,-496.18312323,0.00046542,30]
[407933507,1772922696942,-259.43061762,0.00046542,30]
[407933508,1772922696952,-150.0,0.00046547,30]
[407933509,1772922696961,-1206.0,0.00046575,2]
[407933510,1772922696971,-500.0,0.00046575,120]
[407933511,1772922696980,-500.0,0.00046575,120]
[407933512,1772922696990,-500.0,0.00046575,120]
[407933513,1772922697000,-500.0,0.00046575,120]
[407933514,1772922697009,-500.0,0.00046575,120]
[407933515,1772922697019,-500.0,0.00046575,120]
[407933516,1772922697029,-500.0,0.00046575,120]
[407933517,1772922697038,-158.58332887,0.00046575,120]
[407933518,1772922697048,-751.54,0.00046575,120]
[407933519,1772922697058,-326.30922708,0.00046575,120]
[407933520,1772922697068,-933.01053149,0.00046575,120]
[407933521,1772922697078,-10716.24,0.00046575,120]
[407933522,1772922697088,-10000.0,0.00046575,120]
[407933523,1772922697097,-10000.0,0.00046575,120]
[407933524,1772922697107,-10000.0,0.00046575,120]
[407933525,1772922697117,-746.0,0.00046575,120]
[407933526,1772922697127,-400.0,0.00046575,120]
[407933527,1772922697136,-400.0,0.00046575,120]
[407933528,1772922697145,-281.34618741,0.00046575,120]
[407933529,1772922697155,-281.34618741,0.00046575,120]
[407933530,1772922697165,-281.34618741,0.00046575,120]
[407933531,1772922697174,-281.34618741,0.00046575,120]
[407933532,1772922697183,-281.34618741,0.00046575,120]
[407933533,1772922697192,-281.34618741,0.00046575,120]
[407933534,1772922697201,-281.34618741,0.00046575,120]
[407933535,1772922697211,-281.34618741,0.00046575,120]
[407933536,1772922697221,-281.3461874,0.00046575,120]
[407933537,1772922697231,-281.3461874,0.00046575,120]
[407933538,1772922697240,-281.3461874,0.00046575,120]
[407933539,1772922697251,-281.3461874,0.00046575,120]
[407933540,1772922697261,-281.3461874,0.00046575,120]
[407933541,1772922697274,-281.3461874,0.00046575,120]
[407933542,1772922697284,-281.3461874,0.00046575,120]
[407933543,1772922697293,-281.3461874,0.00046575,120]
[407933544,1772922697303,-281.3461874,0.00046575,120]
[407933545,1772922697313,-281.3461874,0.00046575,120]
[407933546,1772922697323,-281.3461874,0.00046575,120]
[407933547,1772922697336,-281.3461874,0.00046575,120]
[407933548,1772922697346,-150.0,0.00046583,30]
[407933549,1772922697356,-237.41052331,0.0004659,30]
[407933550,1772922697366,-178.59741063,0.0004659,30]
[407933551,1772922697375,-159.52490233,0.0004659,30]
[407933552,1772922697385,-196.42941855,0.0004659,30]
[407933553,1772922697394,-496.18312323,0.0004659,30]
[407933554,1772922697404,-259.43061762,0.0004659,30]
[407933555,1772922697415,-150.0,0.00046597,30]
[407933556,1772922697426,-151.46,0.00046602,120]
[407933557,1772922697436,-573.0,0.00046614,120]
[407933558,1772922697445,-573.0,0.00046614,120]
[407933559,1772922697455,-150.0,0.00046618,120]
[407933560,1772922697466,-150.0,0.00046619,30]
[407933561,1772922697476,-150.0,0.00046619,30]
[407933562,1772922697486,-150.0,0.00046622,30]
[407933563,1772922697496,-237.41052331,0.00046637,30]
[407933564,1772922697506,-178.59741063,0.00046637,30]
[407933565,1772922697515,-159.52490233,0.00046637,30]
[407933566,1772922697524,-196.42941855,0.00046637,30]
[407933567,1772922697533,-496.18312323,0.00046637,30]
[407933568,1772922697542,-259.43061762,0.00046637,30]
[407933569,1772922697551,-993.49,0.00046644,120]
[407933570,1772922697560,-150.0,0.00046648,30]
[407933571,1772922697569,-1001.7499,0.00046652,120]
[407933572,1772922697579,-150.0,0.00046667,30]
[407933573,1772922697588,-150.0,0.00046667,30]
[407933574,1772922697598,-150.0,0.00046672,120]
[407933575,1772922697607,-167.0,0.0004668,120]
[407933576,1772922697616,-237.41052331,0.00046685,30]
[407933577,1772922697625,-178.59741063,0.00046685,30]
[407933578,1772922697634,-159.52490233,0.00046685,30]
[407933579,1772922697644,-196.42941855,0.00046685,30]
[407933580,1772922697653,-496.18312323,0.00046685,30]
[407933581,1772922697662,-259.43061762,0.00046685,30]
[407933582,1772922697671,-442.69,0.00046689,120]
[407933583,1772922697681,-150.0,0.00046699,30]
[407933584,1772922697690,-1000.0,0.000467,120]
[407933585,1772922697700,-1000.0,0.000467,120]
[407933586,1772922697709,-1000.0,0.000467,120]
[407933587,1772922697719,-1000.0,0.000467,120]
[407933588,1772922697728,-1000.0,0.000467,120]
[407933589,1772922697737,-1000.0,0.000467,120]
[407933590,1772922697747,-1000.0,0.000467,120]
[407933591,1772922697756,-1000.0,0.000467,120]
[407933592,1772922697766,-1000.0,0.000467,120]
[407933593,1772922697776,-1000.0,0.000467,120]
[407933594,1772922697786,-156.48609943,0.00046701,2]
[407933595,1772922697795,-151.46,0.00046702,120]
[407933596,1772922697805,-160.14664636,0.00046708,2]
[407933597,1772922697814,-150.0,0.00046708,120]
[407933598,1772922697824,-150.0,0.00046713,30]
[407933599,1772922697834,-74481.83,0.0004672,7]
[407933600,1772922697844,-150.0,0.00046733,30]
[407933601,1772922697853,-237.41052331,0.00046733,30]
[407933602,1772922697863,-178.59741063,0.00046733,30]
[407933603,1772922697873,-159.52490233,0.00046733,30]
[407933604,1772922697883,-196.42941855,0.00046733,30]
[407933605,1772922697891,-496.18312323,0.00046733,30]
[407933606,1772922697901,-259.43061762,0.00046733,30]
[407933607,1772922697910,-150.0,0.00046747,30]
[407933608,1772922697920,-150.0,0.00046747,30]
[407933609,1772922697931,-150.0,0.0004675,30]
[407933610,1772922697940,-150.0,0.00046752,30]
[407933611,1772922697949,-1000.0,0.0004677,120]
[407933612,1772922697958,-1000.0,0.0004677,120]
[407933613,1772922697967,-1000.0,0.0004677,120]
[407933614,1772922697976,-1660.3271279,0.0004677,120]
[407933615,1772922697985,-150.0,0.00046776,120]
[407933616,1772922697994,-1000.0,0.00046779,120]
[407933617,1772922698003,-1000.0,0.00046779,120]
[407933618,1772922698012,-1000.0,0.00046779,120]
[407933619,1772922698023,-1660.3271279,0.00046779,120]
[407933620,1772922698032,-237.41052331,0.00046781,30]
[407933621,1772922698042,-178.59741063,0.00046781,30]
[407933622,1772922698051,-159.52490233,0.00046781,30]
[407933623,1772922698060,-196.42941855,0.00046781,30]
[407933624,1772922698069,-496.18312323,0.00046781,30]
[407933625,1772922698078,-259.43061762,0.00046781,30]
[407933626,1772922698088,-1635.95067377,0.000468,120]
[407933627,1772922698097,-152.0,0.000468,120]
[407933628,1772922698108,-154.0,0.000468,120]
[407933629,1772922698119,-3300.0,0.000468,120]
[407933630,1772922698129,-150.0,0.00046801,30]
[407933631,1772922698138,-151.46,0.00046802,120]
[407933632,1772922698147,-150.0,0.00046804,30]
[407933633,1772922698156,-11381.19,0.00046823,7]
[407933634,1772922698165,-10480.86,0.00046823,7]
[407933635,1772922698174,-27459.78,0.00046823,7]
[407933636,1772922698184,-237.41052331,0.00046828,30]
[407933637,1772922698194,-178.59741063,0.00046828,30]
[407933638,1772922698204,-159.52490233,0.00046828,30]
[407933639,1772922698213,-196.42941855,0.00046828,30]
[407933640,1772922698222,-150.0,0.00046828,30]
[407933641,1772922698232,-496.18312323,0.00046828,30]
[407933642,1772922698243,-259.43061762,0.00046828,30]
[407933643,1772922698253,-150.0,0.00046836,30]
[407933644,1772922698265,-1206.0,0.00046849,2]
[407933645,1772922698277,-751.54,0.00046849,120]
[407933646,1772922698286,-150.0,0.00046851,30]
[407933647,1772922698295,-150.0,0.00046872,120]
[407933648,1772922698306,-150.0,0.00046875,30]
[407933649,1772922698315,-150.0,0.00046875,30]
[407933650,1772922698324,-237.41052331,0.00046876,30]
[407933651,1772922698333,-178.59741063,0.00046876,30]
[407933652,1772922698343,-159.52490233,0.00046876,30]
[407933653,1772922698352,-196.42941855,0.00046876,30]
[407933654,1772922698361,-496.18312323,0.00046876,30]
[407933655,1772922698370,-259.43061762,0.00046876,30]
[407933656,1772922698380,-3976.52,0.00046885,120]
[407933657,1772922698389,-456.0,0.00046886,120]
[407933658,1772922698398,-545.44162604,0.00046888,120]
[407933659,1772922698407,-150.0,0.00046894,30]
[407933660,1772922698416,-306.18849,0.000469,120]
[407933661,1772922698425,-161.35713409,0.000469,90]
[407933662,1772922698434,-213.62871625,0.000469,90]
[407933663,1772922698443,-963.664,0.000469,120]
[407933664,1772922698452,-1216.176,0.000469,90]
[407933665,1772922698461,-2304.496,0.000469,120]
[407933666,1772922698470,-2304.496,0.000469,120]
[407933667,1772922698479,-2304.49,0.000469,120]
[407933668,1772922698488,-1426.76248372,0.000469,120]
[407933669,1772922698497,-2629.91059651,0.000469,120]
[407933670,1772922698506,-10786.0,0.000469,120]
[407933671,1772922698515,-1000.00752998,0.000469,120]
[407933672,1772922698523,-150.0,0.00046902,30]
[407933673,1772922698533,-151.46,0.00046902,120]
[407933674,1772922698541,-993.49,0.00046918,120]
[407933675,1772922698551,-150.0,0.0004692,30]
[407933676,1772922698560,-178.59741063,0.00046924,30]
[407933677,1772922698569,-237.41052331,0.00046924,30]
[407933678,1772922698578,-159.52490233,0.00046924,30]
[407933679,1772922698587,-196.42941855,0.00046924,30]
[407933680,1772922698596,-496.18312323,0.00046924,30]
[407933681,1772922698604,-259.43061762,0.00046924,30]
[407933682,1772922698614,-218.61207107,0.00046948,120]
[407933683,1772922698623,-921.0,0.00046952,2]
[407933684,1772922698632,-1212.0,0.00046952,2]
[407933685,1772922698641,-150.0,0.00046953,30]
[407933686,1772922698651,-150.0,0.00046963,30]
[407933687,1772922698660,-237.41052331,0.00046972,30]
[407933688,1772922698669,-178.59741063,0.00046972,30]
[407933689,1772922698678,-159.52490233,0.00046972,30]
[407933690,1772922698687,-196.42941855,0.00046972,30]
[407933691,1772922698696,-496.18312323,0.00046972,30]
[407933692,1772922698705,-259.43061762,0.00046972,30]
[407933693,1772922698714,-156.48609943,0.00046975,2]
[407933694,1772922698723,-2844.0,0.00046978,46]
[407933695,1772922698732,-214.0,0.0004698,30]
[407933696,1772922698741,-150.0,0.00046985,30]
[407933697,1772922698750,-1017.28987722,0.00046998,120]
[407933698,1772922698759,-1000.0,0.00046999,120]
[407933699,1772922698768,-50000.0,0.00047,75]
[407933700,1772922698777,-1000.0,0.00047,120]
[407933701,1772922698786,-1396.29,0.00047,40]
[407933702,1772922698795,-301.19751546,0.00047,120]
[407933703,1772922698804,-512.89477954,0.00047,120]
[407933704,1772922698813,-2000.0,0.00047,120]
[407933705,1772922698822,-100000.0,0.00047,11]
[407933706,1772922698831,-100000.0,0.00047,10]
[407933707,1772922698840,-100000.0,0.00047,12]
[407933708,1772922698849,-160.0,0.00047,120]
[407933709,1772922698858,-21534.0,0.00047,120]
[407933710,1772922698867,-1815.0,0.00047,120]
[407933711,1772922698876,-442.8,0.00047,120]
[407933712,1772922698885,-481.13,0.00047,120]
[407933713,1772922698894,-464.76,0.00047,120]
[407933714,1772922698903,-463.6,0.00047,120]
[407933715,1772922698913,-500.0,0.00047,120]
[407933716,1772922698922,-151.46,0.00047002,120]
[407933717,1772922698932,-150.0,0.00047003,30]
[407933718,1772922698941,-150.0,0.00047003,30]
[407933719,1772922698950,-150.0,0.00047004,30]
[407933720,1772922698959,-150.0,0.00047005,30]
[407933721,1772922698969,-237.41052331,0.00047019,30]
[407933722,1772922698978,-178.59741063,0.00047019,30]
[407933723,1772922698987,-159.52490233,0.00047019,30]
[407933724,1772922698996,-196.42941855,0.00047019,30]
[407933725,1772922699005,-496.18312323,0.00047019,30]
[407933726,1772922699014,-259.43061762,0.00047019,30]
[407933727,1772922699023,-2000.0,0.0004702,90]
[407933728,1772922699032,-465.09210924,0.00047023,4]
[407933729,1772922699041,-150.0,0.00047026,120]
[407933730,1772922699050,-462.44,0.0004705,120]
[407933731,1772922699059,-150.0,0.00047055,30]
[407933732,1772922699068,-237.41052331,0.00047067,30]
[407933733,1772922699077,-178.59741063,0.00047067,30]
[407933734,1772922699086,-159.52490233,0.00047067,30]
[407933735,1772922699095,-196.42941855,0.00047067,30]
[407933736,1772922699104,-496.18312323,0.00047067,30]
[407933737,1772922699113,-259.43061762,0.00047067,30]
[407933738,1772922699121,-150.0,0.00047076,30]
[407933739,1772922699130,-150.0,0.00047085,120]
[407933740,1772922699140,-150.0,0.00047089,30]
[407933741,1772922699149,-151.46,0.00047102,120]
[407933742,1772922699158,-150.0,0.00047106,30]
[407933743,1772922699167,-237.41052331,0.00047115,30]
[407933744,1772922699176,-178.59741063,0.00047115,30]
[407933745,1772922699185,-159.52490233,0.00047115,30]
[407933746,1772922699194,-196.42941855,0.00047115,30]
[407933747,1772922699203,-496.18312323,0.00047115,30]
[407933748,1772922699212,-259.43061762,0.00047115,30]
[407933749,1772922699221,-1206.0,0.00047123,2]
[407933750,1772922699230,-751.54,0.00047123,120]
[407933751,1772922699239,-10716.24,0.00047123,120]
[407933752,1772922699248,-238.89,0.00047123,120]
[407933753,1772922699257,-150.0,0.0004713,30]
[407933754,1772922699270,-150.0,0.0004713,30]
[407933755,1772922699279,-150.0,0.00047156,30]
[407933756,1772922699288,-237.41052331,0.00047163,30]
[407933757,1772922699296,-178.59741063,0.00047163,30]
[407933758,1772922699306,-159.52490233,0.00047163,30]
[407933759,1772922699315,-196.42941855,0.00047163,30]
[407933760,1772922699324,-496.18312323,0.00047163,30]
[407933761,1772922699333,-259.43061762,0.00047163,30]
[407933762,1772922699345,-746.41,0.00047167,2]
[407933763,1772922699354,-150.0,0.00047167,30]
[407933764,1772922699364,-150.0,0.00047174,30]
[407933765,1772922699373,-38564.01613833,0.00047179,20]
[407933766,1772922699382,-993.49,0.00047192,120]
[407933767,1772922699392,-1396.29,0.000472,45]
[407933768,1772922699401,-3304.20582504,0.000472,120]
[407933769,1772922699410,-151.46,0.00047202,120]
[407933770,1772922699418,-150.0,0.00047207,30]
[407933771,1772922699428,-237.41052331,0.0004721,30]
[407933772,1772922699438,-178.59741063,0.0004721,30]
[407933773,1772922699450,-159.52490233,0.0004721,30]
[407933774,1772922699459,-196.42941855,0.0004721,30]
[407933775,1772922699470,-496.18312323,0.0004721,30]
[407933776,1772922699478,-259.43061762,0.0004721,30]
[407933777,1772922699487,-156.48609943,0.00047249,2]
[407933778,1772922699496,-4895.83,0.0004725,30]
[407933779,1772922699507,-1501.4,0.0004725,30]
[407933780,1772922699516,-609.41,0.0004725,30]
[407933781,1772922699525,-150.0,0.00047252,120]
[407933782,1772922699534,-1396.31392972,0.00047255,30]
[407933783,1772922699544,-208.88254792,0.00047258,30]
[407933784,1772922699553,-237.41052331,0.00047258,30]
[407933785,1772922699562,-178.59741063,0.00047258,30]
[407933786,1772922699570,-159.52490233,0.00047258,30]
[407933787,1772922699580,-238.54048836,0.00047258,30]
[407933788,1772922699589,-227.28319694,0.00047258,30]
[407933789,1772922699598,-196.42941855,0.00047258,30]
[407933790,1772922699607,-241.46623561,0.00047258,30]
[407933791,1772922699820,-496.18312323,0.00047258,30]
[407933792,1772922699829,-259.43061762,0.00047258,30]
[407933793,1772922699839,-276.13453046,0.00047258,30]
[407933794,1772922699849,-282.97149505,0.00047258,30]
[407933795,1772922699858,-223.69186689,0.00047258,30]
[407933796,1772922699870,-190.50807492,0.00047258,30]
[407933797,1772922699880,-278.71072036,0.00047258,30]
[407933798,1772922699890,-240.30376615,0.00047258,30]
[407933799,1772922699900,-4795.77,0.00047258,120]
[407933800,1772922699909,-3000.0,0.00047258,120]
[407933801,1772922699918,-538.18737703,0.00047259,30]
[407933802,1772922699927,-9700.0974724,0.00047259,30]
[407933803,1772922699935,-9700.0974724,0.00047259,30]
[407933804,1772922699945,-6324.0,0.00047259,2]
[407933805,1772922699954,-558.11053109,0.00047259,4]
[407933806,1772922699963,-565.34,0.0004726,30]
[407933807,1772922699971,-181.98,0.0004726,30]
[407933808,1772922699984,-563.2,0.0004726,30]
[407933809,1772922699993,-202.54,0.0004726,30]
[407933810,1772922700002,-634.5,0.0004726,30]
[407933811,1772922700012,-500.62627245,0.00047265,15]
[407933812,1772922700022,-2996.5262,0.0004727,2]
[407933813,1772922700033,-2027.9266,0.0004727,2]
[407933814,1772922700043,-182.5135,0.0004727,2]
[407933815,1772922700053,-150.0,0.00047273,120]
[407933816,1772922700062,-500.0,0.00047277,2]
[407933817,1772922700071,-3056.46,0.00047279,2]
[407933818,1772922700082,-11220.85295818,0.00047279,2]
[407933819,1772922700091,-399.22581757,0.00047279,2]
[407933820,1772922700100,-580.49722474,0.00047279,5]
[407933821,1772922700109,-206287.96033684,0.00047279,2]
[407933822,1772922700118,-124626.21348831,0.00047279,2]
[407933823,1772922700127,-10891.40665572,0.00047279,3]
[407933824,1772922700136,-1210.0,0.00047279,2]
[407933825,1772922700145,-6078.72262058,0.00047279,2]
[407933826,1772922700154,-717.7569761,0.00047279,2]
[407933827,1772922700163,-2042.97922509,0.00047279,5]
[407933828,1772922700172,-734.81775926,0.00047279,10]
[407933829,1772922700181,-25443.58026484,0.00047279,20]
[407933830,1772922700190,-355.63017725,0.00047279,2]
[407933831,1772922700200,-2860.75324812,0.00047279,2]
[407933832,1772922700209,-642.62892426,0.00047279,6]
[407933833,1772922700218,-420.63464611,0.00047279,7]
[407933834,1772922700227,-1011.55092831,0.00047279,15]
[407933835,1772922700235,-1030.11534109,0.00047279,20]
[407933836,1772922700244,-987.09103025,0.00047279,2]
[407933837,1772922700253,-1552.28476493,0.00047279,2]
[407933838,1772922700265,-1051.26680711,0.00047279,2]
[407933839,1772922700275,-5296.55201561,0.00047279,2]
[407933840,1772922700285,-501.00496767,0.00047279,2]
[407933841,1772922700295,-550.79483323,0.00047279,7]
[407933842,1772922700304,-425.8543948,0.00047279,7]
[407933843,1772922700315,-2507.10896209,0.00047279,2]
[407933844,1772922700325,-300.0,0.00047279,15]
[407933845,1772922700336,-2760.66770032,0.00047279,2]
[407933846,1772922700349,-220862.98917877,0.00047279,2]
[407933847,1772922700359,-154.47331388,0.00047279,2]
[407933848,1772922700369,-1712.51489133,0.00047279,2]
[407933849,1772922700379,-1108.4906474,0.00047279,7]
[407933850,1772922700387,-1006.37454036,0.00047279,5]
[407933851,1772922700396,-2433.3898525,0.00047279,14]
[407933852,1772922700406,-254.35311207,0.00047279,2]
[407933853,1772922700415,-500.0,0.00047279,2]
[407933854,1772922700425,-1287.73295862,0.00047279,2]
[407933855,1772922700435,-248.41264398,0.00047279,2]
[407933856,1772922700446,-1063.36985937,0.00047279,2]
[407933857,1772922700455,-600.0,0.00047279,5]
[407933858,1772922700465,-556.67864455,0.00047279,2]
[407933859,1772922700475,-500.0,0.00047279,5]
[407933860,1772922700486,-599.62483411,0.00047279,2]
[407933861,1772922700497,-9429.7184563,0.00047279,2]
[407933862,1772922700506,-1339.01506209,0.00047279,2]
[407933863,1772922700517,-1221.0,0.00047279,4]
[407933864,1772922700527,-1000.0,0.00047279,10]
[407933865,1772922700537,-3491.74307339,0.00047279,2]
[407933866,1772922700547,-10074.87469655,0.00047279,7]
[407933867,1772922700557,-2242.44469096,0.00047279,2]
[407933868,1772922700567,-23370.34716444,0.00047279,2]
[407933869,1772922700577,-763.13455731,0.00047279,2]
[407933870,1772922700587,-13101.31108079,0.00047279,2]
[407933871,1772922700597,-187.88397129,0.00047279,2]
[407933872,1772922700607,-2009.31832766,0.00047279,2]
[407933873,1772922700619,-14920.23443387,0.00047279,3]
[407933874,1772922700630,-643.0,0.00047279,2]
[407933875,1772922700641,-2021.46732335,0.00047279,4]
[407933876,1772922700650,-990.77135422,0.00047279,2]
[407933877,1772922700660,-500.0,0.00047279,10]
[407933878,1772922700670,-19655.17692569,0.00047279,5]
[407933879,1772922700679,-584.96229583,0.00047279,2]
[407933880,1772922700688,-812220.49629011,0.00047279,2]
[407933881,1772922700697,-3308.62868543,0.00047279,2]
[407933882,1772922700706,-158.62039003,0.00047279,2]
[407933883,1772922700715,-179.01248413,0.00047279,2]
[407933884,1772922700724,-471.22541359,0.00047279,2]
[407933885,1772922700734,-7425.92664452,0.00047279,2]
[407933886,1772922700742,-550.0,0.00047279,2]
[407933887,1772922700751,-1074.59383178,0.00047279,7]
[407933888,1772922700760,-10928.47421604,0.00047279,2]
[407933889,1772922700769,-173650.96177033,0.00047279,2]
[407933890,1772922700778,-15252.00122857,0.00047279,2]
[407933891,1772922700787,-233.56919246,0.00047279,2]
[407933892,1772922700796,-177.25991312,0.00047279,2]
[407933893,1772922700806,-499.2692405,0.00047279,3]
[407933894,1772922700815,-6000.0,0.00047279,2]
[407933895,1772922700824,-1304.50330108,0.00047279,2]
[407933896,1772922700833,-382.91868085,0.00047279,2]
[407933897,1772922700842,-482.04148616,0.00047279,7]
[407933898,1772922700851,-1054.16535206,0.00047279,2]
[407933899,1772922700860,-3195.79827497,0.00047279,2]
[407933900,1772922700870,-675.26526166,0.00047279,2]
[407933901,1772922700879,-235.54277745,0.00047279,14]
[407933902,1772922700888,-7952.04445344,0.00047279,2]
[407933903,1772922700897,-639.3444343,0.00047279,2]